bitfinex/quotes_BTCUSD_20240627
["timestamp","ask_amount","ask_price","bid_price","bid_amount"]
[1719511896237,0.18471884,62014.0,62013.0,0.00087727]
[1719511896437,2.94858484,62014.0,62013.0,0.00087727]
[1719511896841,3.06049584,62014.0,62013.0,0.00087727]
[1719511897494,3.018677,62014.0,62013.0,0.00087727]
[1719511899376,2.779134,62014.0,62013.0,0.00087727]
[1719511900123,2.745985,62014.0,62013.0,0.00087727]
[1719511901525,1.623373,62014.0,62013.0,0.00087727]
[1719511901690,1.624814,62014.0,62013.0,0.00087727]
[1719511901893,1.634814,62014.0,62013.0,0.00087727]
[1719511902302,1.624814,62014.0,62013.0,0.00087727]
[1719511902502,1.634814,62014.0,62013.0,0.00087727]
[1719511902965,1.644814,62014.0,62013.0,0.00087727]
[1719511903403,1.34339769,62014.0,62013.0,0.00087727]
[1719511903614,1.379014,62014.0,62013.0,0.00087727]
[1719511903818,1.369014,62014.0,62013.0,0.00087727]
[1719511904378,1.379014,62014.0,62013.0,0.00087727]
[1719511904969,1.41078923,62014.0,62013.0,0.00087727]
[1719511906684,1.42078923,62014.0,62013.0,0.00087727]
[1719511907755,1.43078923,62014.0,62013.0,0.00187727]
[1719511908544,0.95878423,62014.0,62013.0,0.00187727]
[1719511908748,0.1,62014.0,62013.0,0.00741531]
[1719511909027,0.00084,62019.0,62013.0,0.21801531]
[1719511909235,0.207546,62014.0,62013.0,0.21801531]
[1719511909401,0.1,62014.0,62013.0,0.21801531]
[1719511909600,0.1,62014.0,62013.0,0.21701531]
[1719511909807,0.231597,62014.0,62013.0,0.21701531]
[1719511909943,0.1,62014.0,62013.0,0.22701531]
[1719511910399,0.3329,62014.0,62013.0,0.22701531]
[1719511910709,0.464497,62014.0,62013.0,0.24101531]
[1719511911451,0.3329,62014.0,62013.0,0.24101531]
[1719511911890,0.464497,62014.0,62013.0,0.24101531]
[1719511916683,0.231597,62014.0,62013.0,0.24101531]
[1719511916890,0.324797,62014.0,62013.0,0.24101531]
[1719511917653,0.324797,62014.0,62013.0,0.23547727]
[1719511918061,0.324797,62014.0,62013.0,0.2410156]
[1719511920259,0.325637,62014.0,62013.0,0.2410156]
[1719511920656,0.0633639,62014.0,62013.0,0.2410156]
[1719511921533,0.0633639,62014.0,62013.0,0.23547727]
[1719511922384,1.1061439,62014.0,62013.0,0.23547727]
[1719511922614,0.0633639,62014.0,62013.0,0.23547727]
[1719511922958,0.8461439,62014.0,62013.0,0.23547727]
[1719511923158,0.1633639,62014.0,62013.0,0.2410156]
[1719511923358,0.9261439,62014.0,62013.0,0.23547727]
[1719511923566,0.9261439,62014.0,62013.0,0.2410156]
[1719511927726,0.9261439,62014.0,62013.0,0.0304156]
[1719511927727,0.9461439,62014.0,62013.0,0.0304156]
[1719511928237,0.02,62012.0,62005.0,0.000924]
[1719511928440,0.0932,62006.0,62005.0,0.000924]
[1719511930606,1.383987,62006.0,62005.0,0.014924]
[1719511930804,1.483987,62006.0,62005.0,0.014924]
[1719511931367,1.444574,62006.0,62005.0,0.020924]
[1719511931569,0.688355,62006.0,62005.0,0.020924]
[1719511933633,0.708355,62006.0,62005.0,0.020924]
[1719511933841,0.01,62001.0,61995.0,0.2056]
[1719511934055,0.0932,61996.0,61994.0,0.474]
[1719511934274,0.0932,61996.0,61986.0,0.474]
[1719511934275,0.01,61994.0,61986.0,0.474]
[1719511934497,0.01,61994.0,61984.0,0.2056]
[1719511934498,0.0932,61987.0,61984.0,0.2056]
[1719511934729,0.0932,61987.0,61981.0,0.2056]
[1719511934954,0.0932,61982.0,61981.0,0.2056]
[1719511936503,0.0942,61982.0,61981.0,0.2056]
[1719511936716,0.2342,61982.0,61981.0,0.2056]
[1719511936910,0.3342,61982.0,61981.0,0.2056]
[1719511937297,0.101,61982.0,61981.0,0.2056]
[1719511937497,0.3352,61982.0,61981.0,0.2116]
[1719511937884,0.3342,61982.0,61981.0,0.2056]
[1719511938080,0.3342,61982.0,61981.0,0.006]
[1719511938609,0.3342,61982.0,61980.0,0.000924]
[1719511938784,0.1,61981.0,61980.0,0.000924]
[1719511939208,0.574953,61981.0,61980.0,0.000924]
[1719511940264,0.1,61981.0,61980.0,0.000924]
[1719511940896,0.310942,61981.0,61980.0,0.000924]
[1719511941343,0.242808,61981.0,61980.0,0.000924]
[1719511941518,0.243808,61981.0,61980.0,0.000924]
[1719511941735,0.101,61981.0,61980.0,0.000924]
[1719511941950,0.102,61981.0,61980.0,0.008924]
[1719511942148,0.845496,61981.0,61980.0,0.01455027]
[1719511942728,0.855496,61981.0,61980.0,0.01455027]
[1719511942928,0.0061,61978.0,61976.0,0.000924]
[1719511943126,0.2332,61977.0,61976.0,0.000924]
[1719511943352,4.235138,61977.0,61976.0,0.000924]
[1719511943549,3.420239,61977.0,61976.0,0.000924]
[1719511943762,3.317244,61977.0,61976.0,0.000924]
[1719511943921,3.297244,61977.0,61976.0,0.000924]
[1719511944303,2.467451,61977.0,61976.0,0.000924]
[1719511944670,2.266134,61977.0,61976.0,0.000924]
[1719511944876,2.248002,61977.0,61976.0,0.000924]
[1719511945073,2.30073701,61977.0,61976.0,0.009924]
[1719511945277,2.28973701,61977.0,61976.0,0.000924]
[1719511945677,2.12136901,61977.0,61976.0,0.008924]
[1719511945974,2.12236901,61977.0,61976.0,0.008924]
[1719511946613,0.37693501,61977.0,61976.0,0.219624]
[1719511946815,0.3352,61977.0,61976.0,0.22551755]
[1719511947247,0.3352,61977.0,61976.0,0.01481755]
[1719511947396,0.727519,61977.0,61976.0,0.01481755]
[1719511947596,0.727519,61977.0,61976.0,0.008924]
[1719511947926,1.238903,61977.0,61976.0,0.008924]
[1719511948119,1.19447,61977.0,61976.0,0.008924]
[1719511948623,1.71447,61977.0,61976.0,0.008924]
[1719511948798,0.3352,61977.0,61976.0,0.008924]
[1719511948999,0.3352,61977.0,61976.0,0.222124]
[1719511949604,0.3352,61977.0,61976.0,0.22801755]
[1719511952816,0.3352,61977.0,61976.0,0.23801755]
[1719511953044,0.102,61977.0,61976.0,0.22801755]
[1719511954639,0.002,61977.0,61976.0,0.22801755]
[1719511955024,0.002,61977.0,61976.0,0.222124]
[1719511955378,0.002,61977.0,61976.0,0.22860818]
[1719511958518,0.002,61977.0,61976.0,0.22820818]
[1719511960540,0.002,61977.0,61976.0,0.01540818]
[1719511961534,0.2352,61977.0,61976.0,0.01540818]
[1719511961846,0.3352,61977.0,61976.0,0.01540818]
[1719511964865,0.102,61977.0,61976.0,0.01540818]
[1719511965068,0.2352,61977.0,61976.0,0.01540818]
[1719511965293,0.337,61977.0,61976.0,0.01540818]
[1719511965494,0.3385,61977.0,61976.0,0.01540818]
[1719511965692,0.3385,61977.0,61976.0,0.00884497]
[1719511966292,0.566476,61977.0,61976.0,0.00884497]
[1719511966496,0.4732,61977.0,61976.0,0.09764497]
[1719511966671,0.4732,61977.0,61976.0,0.00884497]
[1719511966871,0.4732,61977.0,61976.0,0.01473997]
[1719511968275,0.3585,61977.0,61976.0,0.01473997]
[1719511968491,0.3585,61977.0,61976.0,0.00884497]
[1719511970617,5.276903,61977.0,61976.0,0.00884497]
[1719511971045,5.30653153,61977.0,61976.0,0.00884497]
[1719511971262,0.02,61976.0,61975.0,0.000924]
[1719511971462,0.0033,61968.0,61961.0,0.114]
[1719511971663,0.2332,61962.0,61961.0,0.114]
[1719511971866,0.3332,61962.0,61961.0,0.114]
[1719511972761,0.646665,61962.0,61961.0,0.114]
[1719511974049,0.647665,61962.0,61961.0,0.114]
[1719511974274,0.35941641,61962.0,61961.0,0.114]
[1719511974474,0.59261641,61962.0,61961.0,0.114]
[1719511974686,0.59361641,61962.0,61961.0,0.114]
[1719511975868,0.59361641,61962.0,61959.0,0.0907]
[1719511976270,0.662453,61961.0,61959.0,0.0907]
[1719511976497,0.1,61960.0,61959.0,0.0907]
[1719511977036,0.717053,61960.0,61959.0,0.0907]
[1719511978273,0.641434,61960.0,61959.0,0.0907]
[1719511978646,0.642434,61960.0,61959.0,0.0907]
[1719511980509,0.642434,61960.0,61958.0,0.116024]
[1719511980794,0.642434,61960.0,61958.0,0.000924]
[1719511981023,1.498941,61959.0,61958.0,0.000924]
[1719511981229,1.598941,61959.0,61958.0,0.000924]
[1719511982409,1.599941,61959.0,61958.0,0.000924]
[1719511983820,1.598941,61959.0,61958.0,0.000924]
[1719511984252,1.600941,61959.0,61958.0,0.000924]
[1719511984853,1.599941,61959.0,61958.0,0.000924]
[1719511985699,0.574082,61959.0,61958.0,0.000924]
[1719511985878,0.575082,61959.0,61958.0,0.000924]
[1719511986957,0.440593,61959.0,61958.0,0.112724]
[1719511987158,0.440593,61959.0,61958.0,0.201524]
[1719511987159,0.102,61959.0,61958.0,0.201524]
[1719511987358,0.002,61959.0,61958.0,0.21345199]
[1719511987541,0.102,61959.0,61958.0,0.21345199]
[1719511988428,0.00867154,61968.0,61958.0,0.01285199]
[1719511988631,0.02,61976.0,61961.0,0.1184]
[1719511988931,0.34327,61967.0,61962.0,0.01190321]
[1719511989078,0.2332,61969.0,61963.0,0.2099]
[1719511989278,0.2332,61973.0,61965.0,0.2099]
[1719511989627,0.01689963,61974.0,61966.0,0.2099]
[1719511989775,0.01689963,61974.0,61967.0,0.22427164]
[1719511989983,0.001,61968.0,61967.0,0.22427164]
[1719511990814,0.001,61968.0,61967.0,0.23231164]
[1719511991133,0.001,61968.0,61967.0,0.01991164]
[1719511991338,0.002,61968.0,61967.0,0.01991164]
[1719511991786,0.001,61968.0,61967.0,0.01991164]
[1719511993087,0.002,61968.0,61967.0,0.03391164]
[1719511993528,0.001,61968.0,61967.0,0.03391164]
[1719511993879,0.002,61968.0,61967.0,0.03591164]
[1719511994080,0.0044,61968.0,61967.0,0.03591164]
[1719511994604,0.0044,61968.0,61967.0,0.02404]
[1719511995248,2.475961,61968.0,61967.0,0.02404]
[1719511995444,2.575961,61968.0,61967.0,0.02404]
[1719511995650,2.573561,61968.0,61967.0,0.02404]
[1719511995821,1.403848,61968.0,61967.0,0.02404]
[1719511998916,1.423848,61968.0,61967.0,0.02404]
[1719511999776,1.425148,61968.0,61967.0,0.02404]
[1719512000180,1.448148,61968.0,61967.0,0.02404]
[1719512000766,1.447148,61968.0,61967.0,0.02204]
[1719512001714,1.455148,61968.0,61967.0,0.02204]
[1719512002123,1.434148,61968.0,61967.0,0.00804]
[1719512002341,1.409848,61968.0,61967.0,0.00804]
[1719512002461,0.438886,61968.0,61967.0,0.01404]
[1719512002666,0.438886,61968.0,61967.0,0.02591229]
[1719512002893,0.383453,61968.0,61967.0,0.02591229]
[1719512007726,0.383453,61968.0,61967.0,0.23784]
[1719512007727,0.109,61968.0,61967.0,0.23784]
[1719512008112,0.109,61968.0,61967.0,0.22971163]
[1719512008646,0.108,61968.0,61967.0,0.22371163]
[1719512008847,0.00084,61975.0,61967.0,0.18225061]
[1719512009104,0.00084,61975.0,61972.0,0.2038]
[1719512009281,0.00084,61975.0,61973.0,0.0912]
[1719512009484,0.00084,61975.0,61974.0,0.01205009]
[1719512009880,0.00084,61975.0,61974.0,0.01105009]
[1719512011643,0.00184,61975.0,61974.0,0.01105009]
[1719512012004,0.00084,61975.0,61974.0,0.02505009]
[1719512012207,0.00184,61975.0,61974.0,0.03705009]
[1719512015935,0.00184,61975.0,61974.0,0.24415009]
[1719512018567,0.00184,61975.0,61974.0,0.25415009]
[1719512018916,0.00184,61975.0,61974.0,0.24415009]
[1719512028982,0.00184,61975.0,61974.0,0.25415009]
[1719512032789,0.61155149,61996.0,61982.0,0.2098]
[1719512032996,0.2332,61996.0,61982.0,0.2098]
[1719512033197,1.19779596,61995.0,61982.0,0.2098]
[1719512033578,0.83879596,61995.0,61983.0,0.02]
[1719512033748,0.45293,61994.0,61983.0,0.02]
[1719512034048,0.45293,61994.0,61982.0,0.2198]
[1719512034403,0.45293,61994.0,61983.0,0.00990713]
[1719512034992,0.1,61993.0,61983.0,0.01990713]
[1719512035232,0.1,61993.0,61983.0,0.00990713]
[1719512035431,0.1,61993.0,61983.0,0.02990713]
[1719512035432,0.403315,61992.0,61983.0,0.02990713]
[1719512035642,0.1,61991.0,61983.0,0.03090713]
[1719512035837,0.1,61991.0,61983.0,0.01090713]
[1719512035996,0.1,61991.0,61983.0,0.02990713]
[1719512036199,0.264315,61990.0,61984.0,0.02]
[1719512036402,0.1,61989.0,61984.0,0.02]
[1719512036603,0.1,61989.0,61985.0,0.00989661]
[1719512037031,0.128558,61988.0,61985.0,0.00369219]
[1719512037284,0.1,61987.0,61985.0,0.0056802]
[1719512037479,0.1,61987.0,61984.0,0.02]
[1719512038089,0.1,61987.0,61982.0,0.2098]
[1719512038294,0.1,61993.0,61982.0,0.2198]
[1719512038495,0.1,61993.0,61985.0,0.2127]
[1719512038715,0.01689596,61995.0,61987.0,0.02]
[1719512038918,0.01689596,61995.0,61988.0,0.1138]
[1719512039123,0.01689596,61995.0,61989.0,0.00935662]
[1719512039914,0.01989596,61995.0,61989.0,0.00935662]
[1719512040108,0.01989596,61995.0,61990.0,0.0872]
[1719512040325,0.01989596,61995.0,61991.0,0.0093453]
[1719512041363,0.01689596,61995.0,61991.0,0.0093453]
[1719512043556,0.01689596,61995.0,61991.0,0.012]
[1719512043791,0.01689596,61995.0,61992.0,0.01120806]
[1719512044606,0.1,61999.0,61992.0,0.01120806]
[1719512045009,0.378014,61998.0,61992.0,0.01120806]
[1719512045170,0.1,61997.0,61993.0,0.2028]
[1719512045370,0.1,61999.0,61993.0,0.2028]
[1719512045627,0.1,61999.0,61994.0,0.01119544]
[1719512045986,0.1,61999.0,61993.0,0.2028]
[1719512046197,0.1,61999.0,61995.0,0.01118913]
[1719512046410,0.1,61999.0,61994.0,0.01119544]
[1719512046620,0.1,61999.0,61996.0,0.01118283]
[1719512046817,0.29789,62004.0,61995.0,0.01118913]
[1719512046818,0.1,62003.0,61995.0,0.01118913]
[1719512047034,0.1,62003.0,61997.0,0.01117519]
[1719512047253,0.942992,62003.0,61996.0,0.0111815]
[1719512047456,0.942992,62003.0,61998.0,0.01116888]
[1719512047656,0.301678,62002.0,61997.0,0.01117519]
[1719512047881,0.1,62001.0,61999.0,0.01116258]
[1719512048055,0.1,62001.0,61998.0,0.01116888]
[1719512048260,0.1,62001.0,62000.0,0.01115627]
[1719512048456,0.1,62001.0,61999.0,0.01116258]
[1719512048663,0.1,62001.0,61993.0,0.2028]
[1719512048861,0.1,62001.0,62000.0,0.01115627]
[1719512049061,0.1,62003.0,61994.0,0.013]
[1719512049440,0.00084,61996.0,61995.0,0.01118781]
[1719512050066,0.00084,61996.0,61993.0,0.2128]
[1719512050268,0.00084,61996.0,61995.0,0.01118781]
[1719512050465,0.00084,61996.0,61994.0,0.01119412]
[1719512050644,0.00084,61996.0,61995.0,0.01118781]
[1719512050847,0.00084,61996.0,61995.0,0.02518781]
[1719512051067,0.00084,61996.0,61995.0,0.014]
[1719512051288,0.00084,61996.0,61995.0,0.02518781]
[1719512051896,0.00084,61996.0,61995.0,0.04518781]
[1719512052105,0.00084,61996.0,61995.0,0.24408781]
[1719512053184,0.00084,61996.0,61995.0,0.25808781]
[1719512053840,0.00084,61996.0,61995.0,0.24408781]
[1719512054157,0.00084,61996.0,61995.0,0.25308781]
[1719512054607,0.00084,61996.0,61995.0,0.25808781]
[1719512054966,0.00084,61996.0,61995.0,0.25308781]
[1719512055332,0.00084,61996.0,61995.0,0.26608781]
[1719512056839,0.00084,61996.0,61995.0,0.25608781]
[1719512057053,0.00084,61996.0,61995.0,0.26608781]
[1719512057459,0.00084,61996.0,61995.0,0.82842679]
[1719512057664,0.2332,62018.0,62008.0,0.2055]
[1719512058004,0.2332,62018.0,62009.0,0.01387065]
[1719512058206,0.227506,62013.0,62008.0,0.2055]
[1719512058405,0.2332,62018.0,62010.0,0.01386277]
[1719512058610,0.2332,62018.0,62008.0,0.2055]
[1719512058903,0.2332,62018.0,62011.0,0.01385488]
[1719512059120,0.2332,62018.0,62008.0,0.2115]
[1719512059325,0.00084,62019.0,62012.0,0.013847]
[1719512059326,0.2332,62015.0,62012.0,0.013847]
[1719512059559,0.10084,62014.0,62010.0,0.006]
[1719512059761,0.10084,62014.0,62013.0,0.01383912]
[1719512059961,0.10084,62014.0,62010.0,0.006]
[1719512060134,0.10084,62014.0,62013.0,0.01383912]
[1719512060333,0.10084,62014.0,62008.0,0.2055]
[1719512060561,0.10084,62014.0,62009.0,0.01387065]
[1719512060764,0.10084,62014.0,62012.0,0.014]
[1719512061087,0.10084,62014.0,62013.0,0.01383912]
[1719512062396,0.10084,62014.0,62013.0,0.02383912]
[1719512062601,0.00084,62014.0,62013.0,0.01]
[1719512062810,0.00084,62014.0,62013.0,0.02383643]
[1719512063016,0.00084,62014.0,62013.0,0.01]
[1719512063312,0.00084,62014.0,62013.0,0.02383643]
[1719512063512,0.00084,62014.0,62013.0,0.01]
[1719512063657,0.00084,62014.0,62013.0,0.02383643]
[1719512063869,0.00084,62014.0,62013.0,0.024]
[1719512064073,0.00084,62014.0,62013.0,0.03783643]
[1719512066028,0.00084,62020.0,62013.0,0.03783643]
[1719512066029,0.48782074,62035.0,62021.0,0.02]
[1719512066172,0.48782074,62035.0,62016.0,0.1098809]
[1719512066173,0.2332,62023.0,62019.0,0.02]
[1719512066359,0.2332,62023.0,62022.0,0.02]
[1719512066781,0.2332,62023.0,62022.0,0.03376552]
[1719512066782,0.0932,62023.0,62022.0,0.03376552]
[1719512067583,0.0932,62023.0,62022.0,0.01376552]
[1719512067780,4.918403,62032.0,62022.0,0.01376552]
[1719512067962,0.0932,62023.0,62022.0,0.01376552]
[1719512068165,0.0932,62023.0,62019.0,0.02]
[1719512068364,0.0932,62020.0,62019.0,0.02]
[1719512069676,0.0932,62020.0,62019.0,0.024]
[1719512070047,0.0932,62020.0,62019.0,0.038]
[1719512072231,0.18130346,62033.0,62023.0,0.02]
[1719512072451,0.0932,62024.0,62023.0,0.02]
[1719512072863,0.303607,62024.0,62023.0,0.02]
[1719512073068,0.1932,62024.0,62023.0,0.02]
[1719512073264,0.403607,62024.0,62023.0,0.02]
[1719512073460,0.1932,62024.0,62023.0,0.02]
[1719512074130,0.01688853,62034.0,62024.0,0.02]
[1719512074131,3.2260204,62029.0,62024.0,0.02]
[1719512074329,0.0932,62025.0,62023.0,0.02]
[1719512074532,3.2260204,62029.0,62023.0,0.02]
[1719512074533,0.0932,62024.0,62023.0,0.02]
[1719512074891,2.719512,62024.0,62023.0,0.02]
[1719512075089,0.0932,62024.0,62023.0,0.02]
[1719512075289,2.679111,62024.0,62023.0,0.02]
[1719512075484,0.0932,62024.0,62023.0,0.02]
[1719512075707,0.0932,62024.0,62023.0,0.031]
[1719512075708,2.979512,62024.0,62023.0,0.031]
[1719512075907,0.0932,62024.0,62023.0,0.2285]
[1719512076108,0.0932,62024.0,62023.0,0.24225316]
[1719512076518,0.0932,62024.0,62023.0,0.22225316]
[1719512076734,0.0932,62024.0,62023.0,0.24225316]
[1719512077505,0.0932,62024.0,62023.0,0.23125316]
[1719512079117,0.0932,62024.0,62023.0,0.15535316]
[1719512079308,0.0932,62024.0,62023.0,0.13535316]
[1719512079484,0.0932,62024.0,62023.0,0.02975316]
[1719512079887,0.0932,62024.0,62023.0,0.0297527]
[1719512080857,0.0932,62024.0,62023.0,0.016]
[1719512081922,0.13974364,62024.0,62023.0,0.016]
[1719512082159,0.23974364,62024.0,62023.0,0.016]
[1719512082333,0.23974364,62024.0,62023.0,0.016924]
[1719512083322,4.67779464,62024.0,62023.0,0.016924]
[1719512083620,4.67779464,62024.0,62013.0,0.0848049]
[1719512083621,0.40207735,62024.0,62013.0,0.0848049]
[1719512083821,0.0932,62014.0,62013.0,0.0848049]
[1719512084220,1.250613,62014.0,62013.0,0.01644273]
[1719512084422,0.1932,62014.0,62013.0,0.01644273]
[1719512084623,3.021035,62014.0,62012.0,0.0848049]
[1719512084901,0.1,62013.0,62012.0,0.0848049]
[1719512085106,2.791757,62013.0,62012.0,0.0848049]
[1719512085309,2.471757,62013.0,62012.0,0.0848049]
[1719512085499,2.211757,62013.0,62012.0,0.0848049]
[1719512085687,2.003377,62013.0,62012.0,0.0848049]
[1719512086854,1.537518,62013.0,62012.0,0.0848049]
[1719512086981,1.493458,62013.0,62012.0,0.0948049]
[1719512087677,1.096122,62013.0,62012.0,0.0968049]
[1719512088733,1.049722,62013.0,62012.0,0.0968049]
[1719512088939,1.049722,62013.0,62012.0,0.11325814]
[1719512089523,0.529722,62013.0,62012.0,0.11325814]
[1719512089717,0.493703,62013.0,62012.0,0.11325814]
[1719512090158,0.250003,62013.0,62012.0,0.13325814]
[1719512090495,0.239,62013.0,62012.0,0.13325814]
[1719512093508,0.239,62013.0,62012.0,0.11325814]
[1719512096114,0.239,62013.0,62009.0,0.1109]
[1719512096115,0.239,62013.0,62009.0,0.05109814]
[1719512096311,0.239,62013.0,62005.0,0.03009814]
[1719512096663,0.0932,62006.0,62005.0,0.03009814]
[1719512096895,0.0932,62006.0,61997.0,0.02]
[1719512097119,0.0932,61998.0,61997.0,0.02]
[1719512097518,0.0932,61998.0,61997.0,0.03158492]
[1719512098306,0.0932,61998.0,61997.0,0.03858492]
[1719512099363,0.0932,61998.0,61997.0,0.04658492]
[1719512099770,0.0932,61998.0,61997.0,0.03858492]
[1719512100238,0.001,61998.0,61997.0,0.12968492]
[1719512100440,0.001,61998.0,61997.0,0.24538492]
[1719512104364,0.0942,61998.0,61997.0,0.24538492]
[1719512104568,0.0942,61998.0,61997.0,0.03858492]
[1719512105183,0.0942,61998.0,61997.0,0.01858492]
[1719512105368,0.0942,61998.0,61997.0,0.03858492]
[1719512106224,0.001,61998.0,61997.0,0.24048492]
[1719512106423,0.0942,61998.0,61997.0,0.24048492]
[1719512106964,0.001,61998.0,61997.0,0.24048492]
[1719512107373,0.001,61998.0,61997.0,0.2289]
[1719512107607,0.001,61998.0,61997.0,0.24057074]
[1719512112979,0.001,61998.0,61997.0,0.03867074]
[1719512113188,0.001,61998.0,61997.0,0.2337]
[1719512113390,0.001,61998.0,61997.0,0.24562527]
[1719512116062,0.001,61998.0,61997.0,0.24654927]
[1719512120441,0.1,62003.0,61998.0,0.02]
[1719512120922,0.1,62003.0,61999.0,0.01190944]
[1719512121358,0.1,62003.0,61999.0,0.03190944]
[1719512121563,0.0795853,62004.0,61999.0,0.03190944]
[1719512121990,0.0795853,62004.0,61999.0,0.01190944]
[1719512122198,0.372569,62003.0,61999.0,0.01190944]
[1719512122630,0.1,62002.0,61999.0,0.01190944]
[1719512123119,0.0195,62001.0,61999.0,0.01190944]
[1719512123353,0.1195,62001.0,61999.0,0.01190944]
[1719512123562,0.1195,62001.0,61997.0,0.000924]
[1719512123774,0.2331,61999.0,61997.0,0.000924]
[1719512124000,0.1195,61998.0,61997.0,0.000924]
[1719512124424,1.225513,61998.0,61997.0,0.000924]
[1719512124656,1.102028,61998.0,61997.0,0.000924]
[1719512126807,1.103028,61998.0,61997.0,0.007924]
[1719512128961,1.196328,61998.0,61997.0,0.007924]
[1719512132121,0.921192,61985.0,61984.0,0.01196796]
[1719512132300,0.921192,61985.0,61983.0,0.02]
[1719512132651,0.1,61984.0,61983.0,0.02]
[1719512132863,0.754865,61984.0,61983.0,0.02]
[1719512133042,0.674147,61984.0,61983.0,0.02]
[1719512133495,0.503728,61984.0,61983.0,0.03197848]
[1719512133726,0.503728,61984.0,61983.0,0.03297848]
[1719512133877,0.503728,61984.0,61983.0,0.02]
[1719512134265,0.503728,61984.0,61983.0,0.021]
[1719512134447,0.504728,61984.0,61983.0,0.021]
[1719512137481,0.440028,61984.0,61983.0,0.021]
[1719512139063,0.365728,61984.0,61983.0,0.021]
[1719512139914,0.365728,61984.0,61983.0,0.001]
[1719512143439,0.365728,61984.0,61983.0,0.01298196]
[1719512144036,0.365728,61984.0,61983.0,0.03298196]
[1719512144663,0.365728,61984.0,61983.0,0.01298196]
[1719512146243,0.365728,61984.0,61983.0,0.01291034]
[1719512148217,0.365728,61984.0,61983.0,0.01383434]
[1719512150360,0.459028,61984.0,61983.0,0.01383434]
[1719512151424,0.459028,61984.0,61983.0,0.00185238]
[1719512151824,0.459028,61984.0,61983.0,0.01383859]
[1719512152233,0.467528,61984.0,61983.0,0.01383859]
[1719512152440,0.467528,61984.0,61983.0,0.0005498]
[1719512152879,0.458028,61984.0,61983.0,0.0005498]
[1719512153307,0.459028,61984.0,61983.0,0.0005498]
[1719512153734,0.462028,61984.0,61983.0,0.0005498]
[1719512153943,0.459028,61984.0,61983.0,0.0005498]
[1719512154356,0.462028,61984.0,61983.0,0.0015498]
[1719512154784,0.461028,61984.0,61983.0,0.0015498]
[1719512157166,0.367728,61984.0,61983.0,0.0015498]
[1719512157371,0.392335,61984.0,61983.0,0.0952498]
[1719512157567,0.34249,61984.0,61983.0,0.10713196]
[1719512159465,0.34249,61984.0,61983.0,0.01343196]
[1719512161522,0.35199,61984.0,61983.0,0.01343196]
[1719512161735,0.407189,61984.0,61983.0,0.0015498]
[1719512162724,0.35199,61984.0,61983.0,0.0015498]
[1719512163865,0.5918887,61984.0,61983.0,0.0015498]
[1719512164640,0.0095,61979.0,61968.0,0.2071]
[1719512164847,0.0933,61969.0,61968.0,0.2071]
[1719512165424,0.0933,61969.0,61967.0,0.000924]
[1719512166054,2.72481,61968.0,61967.0,0.000924]
[1719512166256,2.82481,61968.0,61967.0,0.000924]
[1719512166458,2.481436,61968.0,61967.0,0.000924]
[1719512167111,2.504436,61968.0,61967.0,0.000924]
[1719512168392,2.506436,61968.0,61967.0,0.000924]
[1719512168598,2.516936,61968.0,61953.0,0.22064979]
[1719512168792,0.123,61967.0,61954.0,0.0955]
[1719512169000,0.2335,61955.0,61954.0,0.0955]
[1719512169161,0.3335,61955.0,61954.0,0.0955]
[1719512170616,0.3345,61955.0,61954.0,0.1005]
[1719512171013,0.3345,61955.0,61954.0,0.0955]
[1719512171014,0.3335,61955.0,61954.0,0.0955]
[1719512171617,0.3365,61955.0,61954.0,0.0955]
[1719512172168,0.3375,61955.0,61954.0,0.0955]
[1719512172516,0.3365,61955.0,61954.0,0.0955]
[1719512172922,1.775366,61955.0,61954.0,0.0955]
[1719512173105,0.104,61955.0,61954.0,0.0955]
[1719512173329,0.60197,61955.0,61954.0,0.0955]
[1719512173529,0.3375,61955.0,61954.0,0.2376]
[1719512173756,0.35706,61955.0,61954.0,0.2376]
[1719512173983,0.104,61955.0,61954.0,0.24979788]
[1719512174561,0.004,61955.0,61954.0,0.24979788]
[1719512175631,0.001,61955.0,61954.0,0.24979788]
[1719512175755,0.1,61961.0,61958.0,0.2144]
[1719512175957,0.1,61961.0,61958.0,0.2134]
[1719512176330,0.43046301,61973.0,61972.0,0.02]
[1719512176559,0.0168987,61984.0,61977.0,0.02]
[1719512176732,0.0168987,61984.0,61959.0,0.09344871]
[1719512176733,0.2335,61983.0,61978.0,0.1374]
[1719512176966,0.0168987,61984.0,61979.0,0.02]
[1719512177151,0.0168987,61984.0,61978.0,0.1283482]
[1719512177152,0.107057,61983.0,61978.0,0.1283482]
[1719512177318,0.2335,61983.0,61980.0,0.01192716]
[1719512177517,0.2335,61983.0,61980.0,0.00392716]
[1719512177728,1.700036,61983.0,61978.0,0.1164]
[1719512177934,1.700036,61983.0,61981.0,0.01058331]
[1719512178098,1.700036,61983.0,61979.0,0.002]
[1719512178304,1.392236,61982.0,61979.0,0.002]
[1719512178507,1.132236,61982.0,61978.0,0.1164]
[1719512178903,0.1,61981.0,61980.0,0.002]
[1719512179100,0.1,61981.0,61980.0,0.0932]
[1719512179350,0.867521,61981.0,61980.0,0.0932]
[1719512179719,1.127521,61981.0,61980.0,0.0932]
[1719512180121,1.127521,61981.0,61978.0,0.011]
[1719512180592,0.1,61981.0,61979.0,0.006]
[1719512180800,0.1,61982.0,61973.0,0.226]
[1719512180996,0.1,61982.0,61980.0,0.01059383]
[1719512181118,0.002,61981.0,61980.0,0.021]
[1719512181329,1.129521,61981.0,61980.0,0.021]
[1719512181533,1.129521,61981.0,61973.0,0.207]
[1719512181534,1.227521,61981.0,61973.0,0.207]
[1719512181729,0.2335,61974.0,61973.0,0.207]